bitfinex/quotes_ETHUSD_20241023
["timestamp","ask_amount","ask_price","bid_price","bid_amount"]
[1729643432528,3.43971,2616.5,2616.1,1.71743991]
[1729643434415,6.87951,2616.5,2616.1,1.71743991]
[1729643434777,3.43971,2616.5,2616.1,1.71743991]
[1729643435768,6.87949,2616.5,2616.1,1.71743991]
[1729643435975,3.43971,2616.5,2616.1,1.71743991]
[1729643436498,1.68106886,2616.4,2616.1,0.59817276]
[1729643437017,3.43978,2616.5,2616.1,0.59817276]
[1729643437316,6.87958,2616.5,2616.0,0.7969]
[1729643437674,3.43978,2616.5,2616.0,4.23726]
[1729643438004,3.43978,2616.5,2616.0,5.91832886]
[1729643438176,4.22321,2616.6,2616.1,0.93587389]
[1729643438371,3.43973,2616.5,2616.1,0.93587389]
[1729643440087,3.43952,2616.7,2616.2,0.8206]
[1729643440328,6.87907,2616.7,2616.2,4.26068]
[1729643440611,0.01,2617.5,2616.5,0.8206]
[1729643440612,3.43926,2616.9,2616.5,0.8206]
[1729643440834,3.43932,2616.8,2616.5,0.8206]
[1729643441217,3.43926,2616.9,2616.5,0.8206]
[1729643441404,6.87853,2616.9,2616.5,0.8206]
[1729643441605,3.43926,2616.9,2616.5,0.8206]
[1729643441918,1.68106886,2617.0,2616.2,0.8206]
[1729643441919,3.43971,2616.5,2616.2,0.8206]
[1729643442119,3.43984,2616.4,2616.0,0.8206]
[1729643442317,3.44005,2616.3,2616.0,0.8206]
[1729643442518,5.12111886,2616.3,2616.0,0.8206]
[1729643442748,3.43984,2616.4,2616.0,0.8206]
[1729643442749,3.44012,2616.2,2616.0,0.8206]
[1729643443053,1.68106886,2616.6,2616.0,0.8206]
[1729643443211,3.43978,2616.5,2616.0,4.26095]
[1729643443411,3.43978,2616.5,2616.0,4.86279667]
[1729643444339,3.43978,2616.5,2616.0,8.30305667]
[1729643444643,3.43978,2616.5,2616.0,6.54377553]
[1729643445008,3.43978,2616.5,2616.0,9.98407553]
[1729643445411,3.43978,2616.5,2616.0,9.98406553]
[1729643445635,3.43978,2616.5,2616.0,6.54377553]
[1729643446519,3.43978,2616.5,2616.0,9.98407553]
[1729643447731,3.43978,2616.5,2616.1,3.44019]
[1729643448347,3.43978,2616.5,2616.0,6.54377553]
[1729643448652,3.43978,2616.5,2616.1,0.99839655]
[1729643449733,3.43953,2616.7,2616.2,3.44007]
[1729643450054,5.12059886,2616.7,2616.2,3.44007]
[1729643450265,5.12059886,2616.7,2616.1,0.99839655]
[1729643450266,3.43972,2616.5,2616.1,0.99839655]
[1729643450474,3.43972,2616.5,2616.0,3.99036]
[1729643450955,3.43972,2616.5,2616.0,7.43063]
[1729643451161,3.43972,2616.5,2616.1,3.51665163]
[1729643451352,3.43972,2616.5,2616.1,3.44021]
[1729643451667,3.43958,2616.6,2616.1,3.51665163]
[1729643451871,3.43958,2616.6,2616.2,0.75069216]
[1729643453637,3.43971,2616.5,2616.2,0.75069216]
[1729643457343,5.12059886,2616.7,2616.2,4.19077216]
[1729643457543,6.87908,2616.7,2616.2,4.19077216]
[1729643457866,3.43961,2616.6,2616.2,4.19077216]
[1729643458873,3.43926,2616.9,2616.3,4.03475826]
[1729643459174,3.43926,2616.9,2616.4,3.51626777]
[1729643459339,6.87855,2616.9,2616.4,3.51626777]
[1729643460178,6.87802,2617.1,2616.5,5.12067886]
[1729643460337,6.87802,2617.1,2616.6,0.86368766]
[1729643460338,3.43919,2616.9,2616.6,0.86368766]
[1729643461133,3.43919,2616.9,2616.6,2.06513969]
[1729643461534,5.12025886,2616.9,2616.5,1.20145203]
[1729643461733,5.12057886,2616.7,2616.3,1.20145203]
[1729643461973,3.43968,2616.6,2616.3,1.20145203]
[1729643462182,3.43968,2616.6,2616.4,1.20145203]
[1729643463053,3.43968,2616.6,2616.3,1.20145203]
[1729643463252,3.43951,2616.7,2616.4,1.20145203]
[1729643463446,3.43951,2616.7,2616.5,1.20145203]
[1729643463909,3.43951,2616.7,2616.4,1.20145203]
[1729643464414,6.87904,2616.7,2616.4,1.20145203]
[1729643465013,6.87904,2616.7,2616.5,1.20145203]
[1729643466306,3.43957,2616.6,2616.5,1.20145203]
[1729643467672,3.43951,2616.7,2616.3,1.59126618]
[1729643467673,3.4397,2616.5,2616.4,1.20145203]
[1729643468021,5.12057886,2616.7,2616.4,1.20145203]
[1729643468022,3.43959,2616.6,2616.4,1.20145203]
[1729643469509,3.43951,2616.7,2616.4,1.20145203]
[1729643469721,3.43927,2616.9,2616.5,3.43967]
[1729643470013,3.43927,2616.9,2616.5,4.64112203]
[1729643470185,3.43927,2616.9,2616.6,1.20145203]
[1729643470815,3.43927,2616.9,2616.5,5.46490513]
[1729643471409,3.43927,2616.9,2616.5,5.54133526]
[1729643471596,3.43927,2616.9,2616.5,2.02523513]
[1729643476718,6.87854,2616.9,2616.5,2.02523513]
[1729643476876,3.43932,2616.8,2616.5,1.20145203]
[1729643478933,3.43934,2616.8,2616.5,1.20145203]
[1729643479283,3.43947,2616.7,2616.5,1.20145203]
[1729643480301,3.43944,2616.8,2616.5,1.20145203]
[1729643480302,3.43957,2616.6,2616.5,1.20145203]
[1729643480992,3.43957,2616.6,2616.4,1.20145203]
[1729643484517,3.43944,2616.8,2616.4,1.20145203]
[1729643484698,3.43947,2616.7,2616.4,1.20145203]
[1729643484879,3.43947,2616.7,2616.5,1.20145203]
[1729643485091,3.43947,2616.7,2616.4,1.20145203]
[1729643487162,3.43944,2616.8,2616.5,1.20145203]
[1729643487730,3.43914,2617.0,2616.5,3.50577971]
[1729643488050,3.43914,2617.0,2616.6,3.43951]
[1729643488195,3.43914,2617.0,2616.6,4.64096203]
[1729643488529,3.43914,2617.0,2616.6,1.20145203]
[1729643488740,6.87828,2617.0,2616.6,1.20145203]
[1729643489601,3.43914,2617.0,2616.6,1.20145203]
[1729643489802,5.06524916,2617.6,2616.5,1.20145203]
[1729643489803,3.43952,2616.7,2616.5,1.20145203]
[1729643490033,3.43952,2616.7,2616.4,1.20145203]
[1729643490799,6.87907,2616.7,2616.4,1.20145203]
[1729643491006,3.43952,2616.7,2616.4,1.20145203]
[1729643491838,3.43952,2616.7,2616.4,1.96265203]
[1729643494810,6.87907,2616.7,2616.4,1.96265203]
[1729643495017,3.43957,2616.6,2616.4,1.96265203]
[1729643496052,3.43957,2616.6,2616.3,1.59126618]
[1729643496053,3.43984,2616.4,2616.3,1.20145203]
[1729643496199,5.12090886,2616.4,2616.2,1.20145203]
[1729643496399,3.43984,2616.4,2616.2,1.20145203]
[1729643496635,3.43984,2616.4,2616.1,1.20145203]
[1729643497038,3.43998,2616.3,2616.1,1.20145203]
[1729643497663,3.43998,2616.3,2616.2,1.20145203]
[1729643497872,3.43998,2616.3,2616.1,1.20145203]
[1729643498024,3.43998,2616.3,2616.2,1.20145203]
[1729643498221,9.34579886,2616.5,2616.2,1.20145203]
[1729643498668,3.4399,2616.4,2616.2,1.20145203]
[1729643499252,3.4399,2616.4,2616.1,1.20145203]
[1729643499463,3.4399,2616.4,2616.2,1.20145203]
[1729643500853,3.43997,2616.3,2616.1,1.20145203]
[1729643501929,3.4401,2616.2,2616.1,1.20145203]
[1729643502675,3.4401,2616.2,2616.0,1.20145203]
[1729643507295,3.4401,2616.2,2615.8,5.81327618]
[1729643507296,3.4401,2616.2,2615.9,1.20145203]
[1729643507494,3.4401,2616.2,2615.9,2.2715225]
[1729643507660,3.4399,2616.4,2616.0,1.20145203]
[1729643509149,5.12096886,2616.4,2616.0,1.20145203]
[1729643509397,3.44004,2616.3,2616.0,1.20145203]
[1729643509549,3.44004,2616.3,2615.9,1.20145203]
[1729643509751,3.44004,2616.3,2616.0,1.20145203]
[1729643510147,3.44012,2616.2,2615.9,1.20145203]
[1729643511064,3.43997,2616.3,2615.9,1.20145203]
[1729643511500,5.12100886,2616.4,2615.9,1.20145203]
[1729643511649,3.44011,2616.2,2615.9,1.20145203]
[1729643521156,3.43999,2616.3,2615.9,4.64194203]
[1729643521383,3.43999,2616.3,2616.0,0.86956771]
[1729643521601,3.43999,2616.3,2615.9,4.64194203]
[1729643522697,3.43994,2616.4,2616.0,2.51086886]
[1729643522911,3.43994,2616.4,2616.0,0.8298]
[1729643523060,3.44,2616.3,2616.0,2.03125203]
[1729643524407,4.21562,2616.4,2616.0,2.03125203]
[1729643524606,5.89668886,2616.4,2616.0,0.8298]
[1729643524761,3.44011,2616.2,2616.0,0.8298]
[1729643526273,4.21562,2616.4,2616.0,2.03125203]
[1729643526609,3.43999,2616.3,2616.0,2.03125203]
[1729643531216,4.21562,2616.4,2616.0,2.03125203]
[1729643531384,3.44003,2616.3,2616.0,2.03125203]
[1729643531710,3.44003,2616.3,2616.0,0.8298]
[1729643532310,3.44003,2616.3,2616.0,2.03125203]
[1729643532962,3.44012,2616.2,2616.0,2.03125203]
[1729643533606,3.44012,2616.2,2616.0,0.8298]
[1729643533924,3.44012,2616.2,2616.0,2.03125203]
[1729643534906,4.21562,2616.4,2616.0,2.03125203]
[1729643535240,3.43999,2616.3,2616.0,2.03125203]
[1729643538217,3.43999,2616.3,2616.1,1.20145203]
[1729643539621,5.12078886,2616.5,2616.1,1.20145203]
[1729643539822,3.43987,2616.4,2616.1,1.20145203]
[1729643541106,3.43999,2616.3,2616.1,1.20145203]
[1729643545309,3.43999,2616.3,2616.2,1.20145203]
[1729643547657,3.43891,2617.2,2616.3,0.791]
[1729643547869,3.43891,2617.2,2616.7,2.47206886]
[1729643548043,3.43902,2617.1,2616.8,1.20434061]
[1729643548350,3.43883,2617.2,2616.8,1.20434061]
[1729643548520,0.38418573,2617.5,2617.1,0.791]
[1729643548721,3.43861,2617.4,2617.1,1.99534061]
[1729643548935,3.43861,2617.4,2617.1,0.791]
[1729643549327,3.43865,2617.3,2617.1,0.791]
[1729643550125,3.43835,2617.6,2617.1,0.791]
[1729643550318,3.43808,2617.8,2617.3,1.68106886]
[1729643550507,6.87566,2618.0,2617.6,0.791]
[1729643550714,1.13820397,2618.2,2617.6,0.791]
[1729643550715,4.57574397,2618.2,2617.7,1.68106886]
[1729643551024,3.437,2618.6,2618.1,1.68106886]
[1729643551025,3.43709,2618.5,2618.1,1.68106886]
[1729643551205,3.43702,2618.6,2618.0,1.75745697]
[1729643551415,5.11847886,2618.3,2617.9,0.791]
[1729643551721,3.43768,2618.1,2617.9,0.791]
[1729643552560,5.11874886,2618.1,2617.6,0.791]
[1729643552852,6.8754,2618.1,2617.6,2.47206886]
[1729643553163,5.11888886,2618.0,2617.6,0.791]
[1729643553315,3.43782,2618.0,2617.6,0.791]
[1729643553637,0.7541,2618.3,2617.6,0.791]
[1729643553638,3.43806,2617.8,2617.6,0.791]
[1729643553841,6.87595,2617.9,2617.6,0.791]
[1729643554212,3.43796,2617.9,2617.6,0.791]
[1729643554533,3.43804,2617.8,2617.6,0.791]
[1729643555414,6.87593,2617.9,2617.6,0.791]
[1729643556220,3.438,2617.8,2617.6,0.791]
[1729643557960,5.11881886,2618.0,2617.6,0.791]
[1729643558258,3.43775,2618.0,2617.6,2.47206886]
[1729643558468,3.43788,2617.9,2617.6,0.791]
[1729643559664,3.43775,2618.0,2617.6,0.791]
[1729643560026,3.43787,2617.9,2617.6,0.791]
[1729643562762,1.68106886,2618.1,2617.6,2.71927575]
[1729643562763,3.43771,2618.1,2617.6,2.71927575]
[1729643562965,3.43769,2618.1,2617.6,2.79567244]
[1729643563147,3.43769,2618.1,2617.6,2.71927575]
[1729643563355,0.01,2618.8,2617.9,2.44356886]
[1729643563356,3.43668,2618.8,2617.9,2.44356886]
[1729643563532,3.43704,2618.6,2618.2,0.7625]
[1729643564238,3.43721,2618.4,2618.2,0.7625]
[1729643564441,3.43734,2618.3,2618.2,0.7625]
[1729643565874,3.43709,2618.5,2618.2,0.7625]
[1729643566258,6.87426,2618.5,2618.2,0.7625]
[1729643566501,3.43722,2618.4,2618.2,0.7625]
[1729643567586,3.43708,2618.5,2618.2,0.7625]
[1729643567951,3.43723,2618.4,2618.2,0.7625]
[1729643569662,3.43734,2618.3,2618.2,0.7625]
[1729643571096,3.43722,2618.4,2618.2,0.7625]
[1729643571393,3.43734,2618.3,2618.2,0.7625]
[1729643574611,3.43722,2618.4,2618.2,0.7625]
[1729643575373,6.87454,2618.4,2618.2,0.7625]
[1729643577109,3.43734,2618.3,2618.2,0.7625]
[1729643579580,5.11828886,2618.4,2618.2,0.7625]
[1729643579581,3.43722,2618.4,2618.2,0.7625]
[1729643579775,3.43711,2618.5,2618.2,0.7625]
[1729643579986,5.11808886,2618.6,2618.2,0.7625]
[1729643580378,8.55512886,2618.6,2618.2,0.7625]
[1729643581315,5.11821886,2618.5,2618.2,0.7625]
[1729643581614,3.43715,2618.5,2618.2,0.7625]
[1729643582319,5.11821886,2618.5,2618.2,0.7625]
[1729643582516,3.43715,2618.5,2618.2,0.7625]
[1729643583082,5.11796886,2618.7,2618.2,0.7625]
[1729643583588,3.43705,2618.6,2618.2,0.7625]
[1729643583886,3.43709,2618.5,2618.2,0.7625]
[1729643584081,3.4369,2618.7,2618.2,0.7625]
[1729643584422,3.43699,2618.6,2618.2,4.19997]
[1729643584621,3.43699,2618.6,2618.2,4.9697899]
[1729643584831,3.43683,2618.7,2618.3,0.7904]
[1729643585121,5.94237886,2619.0,2618.4,3.4372]
[1729643585330,5.11767886,2618.9,2618.5,0.7904]
[1729643585904,3.43639,2619.1,2618.5,2.47146886]
[1729643586106,3.43633,2619.1,2618.7,0.7904]
[1729643586838,3.43626,2619.2,2618.7,4.22709]
[1729643587041,1.68106886,2619.3,2618.8,3.51303146]
[1729643587191,1.68106886,2619.2,2618.9,0.77401215]
[1729643587625,5.11715886,2619.3,2618.9,0.77401215]
[1729643587836,3.43616,2619.2,2618.9,0.77401215]
[1729643588335,3.43616,2619.2,2619.0,0.7904]
[1729643588738,5.11696886,2619.4,2619.0,0.7904]
[1729643589341,3.4359,2619.4,2619.0,1.29814436]
[1729643589543,3.4359,2619.4,2619.0,4.81091576]
[1729643590541,3.4359,2619.4,2619.0,1.37450576]
[1729643590833,1.68106886,2619.5,2619.0,4.81090576]
[1729643590834,5.11683886,2619.5,2619.0,4.81090576]
[1729643590991,3.43577,2619.5,2619.1,0.55849179]
[1729643591195,3.43546,2619.8,2619.4,1.68106886]
[1729643591422,3.4351,2620.1,2619.7,1.68106886]
[1729643591644,3.43511,2620.0,2619.6,1.68106886]
[1729643591852,3.43552,2619.7,2619.5,0.7904]
[1729643592248,3.4354,2619.8,2619.5,0.7904]
[1729643592751,3.43529,2619.9,2619.5,0.7904]
[1729643593046,3.43538,2619.8,2619.5,0.7904]
[1729643594118,3.43512,2620.0,2619.5,0.7904]
[1729643594119,8.55141886,2620.0,2619.5,0.7904]
[1729643594327,3.43525,2619.9,2619.5,0.7904]
[1729643594946,3.43512,2620.0,2619.6,0.66707291]
[1729643595155,1.68106886,2620.1,2619.6,4.10262291]
[1729643595353,3.43501,2620.1,2619.7,0.7904]
[1729643595931,3.43513,2620.0,2619.7,0.7904]
[1729643596454,5.11604886,2620.1,2619.7,0.7904]
[1729643596651,5.11604886,2620.1,2619.8,0.48930729]
[1729643597557,3.43517,2620.0,2619.8,0.48930729]
[1729643597852,5.11623886,2620.0,2619.7,0.7904]
[1729643598857,3.43517,2620.0,2619.7,0.7904]
[1729643599413,5.11623886,2620.0,2619.7,0.7904]
[1729643599812,3.43507,2620.1,2619.7,0.7904]
[1729643600015,5.11613886,2620.1,2619.7,0.7904]
[1729643600265,3.43507,2620.1,2619.8,0.48931029]
[1729643601217,3.43492,2620.2,2619.8,0.48931029]
[1729643601555,3.43492,2620.2,2619.8,3.92468029]
[1729643601768,5.11567886,2620.4,2619.9,0.7952]
[1729643601973,1.68106886,2620.2,2620.0,0.47197903]
[1729643602114,1.68106886,2620.1,2619.9,0.7952]
[1729643602319,5.11599886,2620.2,2619.9,0.7952]
[1729643602616,1.68106886,2620.1,2619.9,0.7952]
[1729643602832,3.43493,2620.2,2619.9,0.7952]
[1729643602833,5.11599886,2620.2,2619.9,0.7952]
[1729643603452,1.68106886,2620.1,2619.9,0.7952]
[1729643604101,5.11599886,2620.2,2619.9,0.7952]
[1729643604230,5.11599886,2620.2,2619.9,1.26720003]
[1729643604930,1.68106886,2620.1,2619.9,0.7952]
[1729643606337,5.11612886,2620.1,2619.9,0.7952]
[1729643606546,5.11612886,2620.1,2619.8,0.48931029]
[1729643606547,5.11617886,2620.0,2619.8,0.48931029]
[1729643606876,5.11617886,2620.0,2619.7,0.7952]
[1729643607780,5.11631886,2619.9,2619.7,0.7952]
[1729643607931,1.68106886,2620.0,2619.7,0.7952]
[1729643608673,1.68106886,2619.9,2619.7,0.7952]
[1729643608873,1.68106886,2619.9,2619.7,1.57736339]
[1729643609446,5.11631886,2619.9,2619.7,1.57736339]
[1729643609635,5.11631886,2619.9,2619.7,0.7952]
[1729643611173,1.68106886,2619.8,2619.5,0.7952]
[1729643613002,5.11631886,2619.9,2619.5,4.23096]
[1729643613607,5.11631886,2619.9,2619.5,0.7952]
[1729643613794,5.11631886,2619.9,2619.6,0.423109]
[1729643613990,1.68106886,2619.7,2619.5,0.7952]
[1729643614212,1.68106886,2619.6,2619.3,3.0]
[1729643614365,1.68106886,2619.6,2619.2,3.43616]
[1729643614563,3.43565,2619.6,2619.2,3.43616]
[1729643614814,3.43598,2619.4,2619.1,0.7952]
[1729643615009,5.11704886,2619.4,2619.1,1.218368]
[1729643615310,3.43598,2619.4,2619.1,1.218368]
[1729643617228,3.43671,2618.8,2618.6,0.7781]
[1729643617372,1.68106886,2618.8,2618.6,0.7781]
[1729643617566,3.43629,2619.1,2618.6,0.7781]
[1729643617777,3.43644,2619.0,2618.6,0.7781]
[1729643617994,3.43644,2619.0,2618.6,1.543323]
[1729643618397,6.87269,2619.1,2618.6,4.980273]
[1729643618631,1.68106886,2619.0,2618.6,1.543323]
[1729643618783,5.11768886,2618.9,2618.6,1.543323]
[1729643619129,5.11748886,2619.0,2618.6,1.543323]
[1729643619702,3.4362,2619.2,2618.7,1.0480333]
[1729643620009,5.11749886,2619.0,2618.6,1.543323]
[1729643623613,1.68106886,2619.1,2618.6,5.05662172]
[1729643623803,3.4363,2619.1,2618.6,5.05662172]
[1729643624297,5.11736886,2619.1,2618.6,5.05662172]
[1729643624708,0.7697,2619.0,2618.6,4.27852172]
[1729643624913,1.68106886,2618.7,2618.4,0.55]
[1729643625143,5.11797886,2618.7,2618.3,3.7781]
[1729643625356,5.11797886,2618.7,2618.3,0.7781]
[1729643625904,1.68106886,2618.6,2618.3,0.7781]
[1729643626103,5.11797886,2618.7,2618.3,0.7781]
[1729643626548,5.11784886,2618.8,2618.3,4.21542]
[1729643626705,5.11762886,2618.9,2618.4,3.4372]
[1729643627241,5.11762886,2618.9,2618.4,3.43714]
[1729643627904,3.43677,2618.8,2618.3,1.19965]
[1729643628110,5.11783886,2618.8,2618.4,0.807442]
[1729643628311,3.43677,2618.8,2618.4,0.807442]
[1729643628549,3.43684,2618.7,2618.4,0.807442]
[1729643628850,6.87378,2618.7,2618.4,0.807442]
[1729643629047,6.87378,2618.7,2618.3,0.7781]
[1729643629048,3.43684,2618.7,2618.3,0.7781]
[1729643630366,3.43662,2618.9,2618.3,4.21544]
[1729643630562,3.43662,2618.9,2618.3,0.7781]
[1729643630563,3.43668,2618.8,2618.3,0.7781]
[1729643631589,3.43662,2618.9,2618.3,0.7781]
[1729643631590,3.43683,2618.7,2618.3,0.7781]
[1729643631797,4.23572121,2618.8,2618.1,3.8314]
[1729643631993,3.43728,2618.4,2618.1,0.8314]
[1729643632292,3.43716,2618.5,2618.1,3.8314]
[1729643632467,3.43723,2618.4,2618.1,0.8314]
[1729643632804,3.43723,2618.4,2618.1,1.558326]
[1729643633111,3.43716,2618.5,2618.1,1.558326]
[1729643633601,3.43725,2618.4,2618.1,4.558326]
[1729643634367,3.43708,2618.5,2618.1,4.558326]
[1729643634772,3.43708,2618.5,2618.1,1.558326]
[1729643637372,3.43724,2618.4,2618.1,0.8314]
[1729643637571,3.43708,2618.5,2618.1,0.8314]
[1729643637572,6.87428,2618.5,2618.1,0.8314]
[1729643637786,3.43708,2618.5,2618.1,0.8314]
[1729643639614,3.43723,2618.4,2618.1,0.8314]
[1729643640312,3.43723,2618.4,2618.1,1.2139]
[1729643640523,3.43723,2618.4,2618.1,1.29657]
[1729643641375,3.43698,2618.6,2618.1,1.29657]
[1729643641575,3.43708,2618.5,2618.1,1.29657]
[1729643642022,3.43698,2618.6,2618.1,1.29657]
[1729643642291,3.43722,2618.4,2618.1,0.8314]
[1729643642697,3.43741,2618.3,2618.1,0.8314]
[1729643643481,3.43722,2618.4,2618.1,0.8314]
[1729643643906,3.43715,2618.5,2618.1,0.8314]
[1729643644106,0.8207,2618.8,2618.1,0.8314]
[1729643644430,3.43653,2619.0,2618.5,3.43698]
[1729643644715,3.43653,2619.0,2618.5,4.259782]
[1729643645023,6.87305,2619.0,2618.5,4.259782]
[1729643645319,3.43663,2618.9,2618.5,0.822802]
[1729643646077,3.43669,2618.8,2618.5,0.822802]
[1729643647877,3.43646,2619.0,2618.5,0.822802]
[1729643648206,3.43655,2618.9,2618.6,0.51401564]
[1729643649683,3.43655,2618.9,2618.7,0.8038]
[1729643650371,0.38397713,2619.1,2618.7,0.8038]
[1729643650577,0.38397713,2619.1,2618.7,5.92133215]
[1729643650830,3.82030713,2619.1,2618.8,0.65117221]
[1729643651185,0.38397713,2619.1,2618.8,0.65117221]
[1729643651374,0.38397713,2619.1,2618.9,0.8038]
[1729643651575,0.38397713,2619.1,2618.9,4.31670469]
[1729643652120,0.38397713,2619.1,2618.9,0.88016469]
[1729643652324,0.38397713,2619.1,2618.9,0.8038]
[1729643652617,0.38397713,2619.1,2619.0,0.48916222]
[1729643658934,0.38397713,2619.1,2619.0,5.25388222]
[1729643663600,0.38397713,2619.1,2619.0,0.48916222]
[1729643671148,0.38397713,2619.1,2619.0,5.25388222]
[1729643671447,0.38397713,2619.1,2619.0,5.33023503]
[1729643671646,0.38397713,2619.1,2619.0,5.25388222]
[1729643671942,0.38397713,2619.1,2619.0,5.33023526]
[1729643672106,0.38397713,2619.1,2619.0,5.25388222]
[1729643683219,0.38397713,2619.1,2618.8,4.84874103]
[1729643683423,0.38397713,2619.1,2618.8,3.65117221]
[1729643683628,0.38397713,2619.1,2618.8,0.65117221]
[1729643684225,0.38397713,2619.1,2618.8,4.08784221]
[1729643684457,0.38397713,2619.1,2618.8,0.65117221]
[1729643684751,0.38397713,2619.1,2618.8,4.06295119]
[1729643685334,0.38397713,2619.1,2618.8,3.98659]
[1729643685795,0.38397713,2619.1,2618.8,5.18415882]
[1729643685951,0.38397713,2619.1,2618.8,3.98659]
[1729643687081,0.38397713,2619.1,2618.8,3.98665]
[1729643687284,0.38397713,2619.1,2618.8,5.18421882]
[1729643689185,0.38397713,2619.1,2618.9,1.19756882]
[1729643693146,0.38397713,2619.1,2619.0,1.19756882]
[1729643696252,0.38397713,2619.1,2619.0,1.59675843]
[1729643702554,0.38397713,2619.1,2619.0,1.20229229]
[1729643702750,0.38397713,2619.1,2619.0,1.59675843]
[1729643703491,0.38397713,2619.1,2619.0,2.79903629]
[1729643703700,0.38397713,2619.1,2619.0,1.20227786]
[1729643703902,0.38397713,2619.1,2618.9,1.59675843]
[1729643704197,4.19772,2619.0,2618.9,1.20230258]
[1729643704456,4.19772,2619.0,2618.8,1.20230258]
[1729643705401,4.19772,2619.0,2618.7,1.20230258]
[1729643705587,4.19772,2619.0,2618.8,1.20230258]
[1729643706106,0.7613,2619.0,2618.8,1.20230258]
[1729643706427,0.7613,2619.0,2618.7,1.20230258]
[1729643706617,4.19774,2619.0,2618.7,1.20230258]
[1729643708143,5.87801703,2619.0,2618.7,1.20230258]
[1729643708432,3.43656,2618.9,2618.7,1.20230258]
[1729643708938,3.43656,2618.9,2618.6,1.20230258]
[1729643709489,3.43656,2618.9,2618.7,1.20230258]
[1729643710129,3.43656,2618.9,2618.6,1.20230258]
[1729643711165,4.19773,2619.0,2618.6,1.20230258]
[1729643711432,0.38397713,2619.1,2618.6,2.10259549]
[1729643711647,0.38397713,2619.1,2618.8,0.764]
[1729643711794,0.38397713,2619.1,2618.8,5.40297258]
[1729643711994,0.38397713,2619.1,2618.9,1.20230258]
[1729643713905,0.38397713,2619.1,2618.7,1.20230258]
[1729643713906,4.19772,2619.0,2618.7,1.20230258]
[1729643714330,4.19772,2619.0,2618.8,1.20230258]
[1729643714858,3.43655,2618.9,2618.7,1.20230258]
[1729643715004,3.43681,2618.7,2618.6,1.20230258]
[1729643715345,3.43695,2618.6,2618.5,1.20230258]
[1729643715495,3.43708,2618.5,2618.3,1.20230258]
[1729643715934,3.43721,2618.4,2618.3,1.20230258]
[1729643716096,5.11748703,2618.4,2618.3,1.20230258]
[1729643716299,4.19851,2618.4,2618.2,1.20230258]
[1729643716500,4.19851,2618.4,2618.1,1.75844746]
[1729643716738,3.43734,2618.3,2618.1,1.75844746]
[1729643716903,4.19852,2618.4,2618.0,1.20230258]
[1729643717099,0.7613,2618.4,2618.1,1.20230258]
[1729643717306,1.68027703,2618.7,2618.1,1.20230258]
[1729643717307,4.19825,2618.6,2618.1,1.20230258]
[1729643717538,3.43711,2618.5,2618.1,1.20230258]
[1729643717716,5.11751703,2618.4,2618.0,1.20230258]
[1729643718640,0.7894,2618.4,2617.9,1.20230258]
[1729643718848,0.7894,2618.4,2617.8,1.20230258]
[1729643718849,3.43767,2618.1,2617.8,1.20230258]
[1729643719432,3.43698,2618.6,2617.7,1.35959482]
[1729643719433,5.11814703,2617.9,2617.7,0.59759482]
[1729643719755,5.90748703,2618.0,2617.7,0.59759482]
[1729643719927,5.90748703,2618.0,2617.5,4.64069258]
[1729643720128,5.90748703,2618.0,2617.7,0.5978926]
[1729643721345,4.22721,2618.0,2617.7,0.5978926]
[1729643721879,7.66504,2618.0,2617.7,0.5978926]
[1729643722045,4.22721,2618.0,2617.7,0.5978926]
[1729643727081,3.43687,2618.7,2617.7,0.5978926]
[1729643727244,3.44645,2619.0,2617.8,0.762]
[1729643727245,3.43755,2618.2,2617.8,0.762]
[1729643732591,6.87512,2618.2,2617.8,0.762]
[1729643733995,3.43763,2618.1,2617.8,0.762]
[1729643734153,3.43763,2618.1,2617.8,1.40981696]
[1729643734648,3.43763,2618.1,2617.8,0.762]
[1729643740483,3.43763,2618.1,2617.7,0.5978926]
[1729643740484,0.7646,2618.0,2617.7,0.5978926]
[1729643743112,3.43755,2618.2,2617.8,0.7972]
[1729643743316,6.87515,2618.2,2617.8,0.7972]
[1729643743526,3.43755,2618.2,2617.8,0.7972]
[1729643744173,6.87511,2618.2,2617.8,0.7972]
[1729643745003,3.43755,2618.2,2617.8,0.7972]
[1729643745189,6.87509,2618.2,2617.8,0.7972]
[1729643745375,3.43754,2618.2,2617.8,0.7972]
[1729643746433,6.87508,2618.2,2617.8,0.7972]
[1729643747539,3.43754,2618.2,2617.8,0.7972]
[1729643747896,6.8751,2618.2,2617.8,0.7972]
[1729643748647,3.4376,2618.1,2617.8,0.7972]
[1729643751542,3.43754,2618.2,2617.8,0.7972]
[1729643752137,6.87511,2618.2,2617.8,0.7972]
[1729643754360,3.43763,2618.1,2617.8,0.7972]
[1729643756152,3.43754,2618.2,2617.8,0.7972]
[1729643756564,3.43754,2618.2,2617.8,4.23519]
[1729643757090,3.43754,2618.2,2617.8,0.7972]
[1729643758425,4.20169,2618.5,2618.1,0.7698]
[1729643758660,3.43708,2618.5,2618.1,0.7698]
[1729643758838,3.43708,2618.5,2618.1,1.96662893]
[1729643759437,4.21473,2618.7,2618.2,4.63419893]
[1729643759637,4.21473,2618.7,2618.2,4.71057954]
[1729643759947,4.21473,2618.7,2618.2,6.31447596]
[1729643760150,4.21473,2618.7,2618.3,1.19682893]
[1729643760523,2.45817703,2618.7,2618.3,1.19682893]
[1729643760726,3.43695,2618.6,2618.4,1.19682893]
[1729643761358,5.89500703,2618.7,2618.4,1.19682893]
[1729643761789,3.43696,2618.6,2618.3,1.19682893]
[1729643762640,5.11723703,2618.6,2618.3,1.19682893]
[1729643762842,5.11748703,2618.4,2618.2,1.19682893]
[1729643763245,5.11748703,2618.4,2618.1,1.19682893]
[1729643763594,5.11748703,2618.4,2618.2,1.19682893]
[1729643764475,5.11748703,2618.4,2618.1,1.19682893]
[1729643764915,3.4374,2618.3,2618.1,1.19682893]
[1729643765129,5.11748703,2618.4,2618.1,1.19682893]
[1729643765296,3.43734,2618.3,2618.1,1.19682893]
[1729643767700,5.11749703,2618.4,2618.1,1.19682893]
[1729643771434,8.55481703,2618.4,2618.1,1.19682893]